Cogmind - Beta 15 @@@ ROGUE MODE // 2025.05.13 @ 02:45:18 Player: Cogchaaaan Result: Destroyed by P-80 Master with Gamma Rifle Performance ------------- Evolutions (7) 3500 Regions Visited (26) 5200 Robots Destroyed (267) 1335 Value Destroyed (11744) 11744 Prototype IDs (45) 900 Alien Tech Used (3) 600 Bonus (6655) 6655 TOTAL SCORE: 29934 Bonus ------- High Alert Combat Kills 1028 Follower Combat Kills 2437 Met Data Miner 300 Met Imprinter 300 Met Zhirov 300 Met R17 at Cetus 500 Met R17 at Research 2000 Friendly Fire -210 Cogmind --------- Core Integrity 0/1300 Matter 200/300 Energy 99/100 System Corruption 37% Temperature Cool (0) Movement Core (50) Location -3/Protoforge Parts ------- > --- POWER (3) -------- (None) > --- PROPULSION (6) --- (None) > --- UTILITY (10) ----- (None) > --- WEAPON (3) ------- (None) > --- INVENTORY (5) ---- Armored Heavy Treads Heavy Shield Leg Peak State ------------ > --- POWER ------------ Neutrino Core Light Antimatter Reactor Quantum Reactor > --- PROPULSION ------- Centrium Heavy Treads Centrium Heavy Treads Centrium Heavy Treads > --- UTILITY ---------- Advanced Heat Sink Advanced Cooling System Huge Storage Unit Advanced Signal Interpreter Improved Transmission Jammer Centrium Medium Armor Plating Advanced Powered Armor Graphene Brace Improved Force Field Experimental System Shield > --- WEAPON ----------- Advanced Variable Charge Gun Compact HERF Cannon Advanced KE Penetrator > --- INVENTORY -------- Reinforced Fission Core Light Antimatter Reactor Particle Reactor Particle Reactor Compact Particle Reactor Improved Treads Improved Treads Medium Treads Heavy Treads Armored Heavy Treads Centrium Wheel Advanced Heat Sink High-capacity Storage Unit Energy Well Structural Scanner Advanced Sensor Array Advanced Transmission Jammer Layered Medium Armor Plating Advanced Point Defense System Railgun Fusion Bomb Launcher Advanced Datajack CR-A16's Pointy Stick [Rating: 176] Favorites ----------- Power Reinforced Fission Core Engine Improved Ion Engine Power Core Reinforced Fission Core Reactor Light Antimatter Reactor Propulsion Light Treads Treads Light Treads Leg Aluminum Leg Wheel Centrium Wheel Flight Unit Improved Flight Unit Utility High-capacity Storage Unit Device Structural Scanner Storage High-capacity Storage Unit Processor Advanced Signal Interpreter Hackware Advanced Hacking Suite Protection Improved Light Armor Plating Weapon Precision Beam Rifle Energy Gun Precision Beam Rifle Energy Cannon Heavy Plasma Cannon Ballistic Gun Assault Rifle Ballistic Cannon Improved Light Cannon Launcher Heavy Rocket Launcher Special Weapon RU-N14's Throwing Claymores Impact Weapon Great Maul Slashing Weapon Chainsword Piercing Weapon CR-A16's Pointy Stick Build | -11 -10 -10 -9 -9 -8 -7 -7 -7 -7 -6 -6 -6 -6 -6 -5 -5 -5 -5 -5 -4 -4 -4 -4 -3 -3 -3 ------- Run | Yrd Mat Min Mat Min Mat Fac Low Low Zio Pro Fac Low Low Dat Pro Fac Upp Upp Zhi Pro Fac Ext Cet Res Qua Frg Slots Evolved 14 | . . . 2 . 2 2 . . . . 2 . . . . 2 . . . . 2 . . 2 . . Power 2 | . . . . . . . . . . . 1 . . . . . . . . . . . . 1 . . Propulsion 3 | . . . 1 . . 1 . . . . . . . . . . . . . . 1 . . . . . Utility 8 | . . . . . 2 1 . . . . 1 . . . . 2 . . . . 1 . . 1 . . Weapon 1 | . . . 1 . . . . . . . . . . . . . . . . . . . . . . . Parts Attached 207 | 8 13 . 21 2 37 14 1 1 2 3 5 1 . . 10 7 1 1 3 3 7 29 11 11 4 12 Power 25 | 1 2 . 1 . 3 . 1 . . . 1 . . . 2 . . . 1 . 2 4 1 1 2 3 Engine 8 | 1 2 . 1 . 2 . 1 . . . 1 . . . . . . . . . . . . . . . Core 8 | . . . . . 1 . . . . . . . . . 2 . . . . . 2 1 . 1 . 1 Reactor 9 | . . . . . . . . . . . . . . . . . . . 1 . . 3 1 . 2 2 Propulsion 58 | 2 3 . 8 . 12 4 . . 1 1 1 . . . 1 2 1 1 . 2 1 9 3 2 . 4 Treads 48 | . 2 . 8 . 11 4 . . 1 1 1 . . . 1 2 1 1 . 2 1 4 3 2 . 3 Leg 7 | 2 1 . . . . . . . . . . . . . . . . . . . . 4 . . . . Wheel 2 | . . . . . . . . . . . . . . . . . . . . . . 1 . . . 1 Hover . | . . . . . . . . . . . . . . . . . . . . . . . . . . . Flight 1 | . . . . . 1 . . . . . . . . . . . . . . . . . . . . . Utility 65 | 2 4 . 3 2 10 5 . . . 1 1 . . . 5 4 . . 2 . 2 9 4 6 1 4 Device 30 | 1 1 . . 1 4 3 . . . 1 . . . . 3 1 . . . . 2 5 2 4 . 2 Storage 5 | 1 1 . 2 1 . . . . . . . . . . . . . . . . . . . . . . Processor 8 | . . . . . 3 1 . . . . 1 . . . 2 1 . . . . . . . . . . Hackware 6 | . . . . . . . . . . . . . . . . 2 . . 1 . . 1 1 . 1 . Protection 16 | . 2 . 1 . 3 1 . . . . . . . . . . . . 1 . . 3 1 2 . 2 Artifact . | . . . . . . . . . . . . . . . . . . . . . . . . . . . Weapon 59 | 3 4 . 9 . 12 5 . 1 1 1 2 1 . . 2 1 . . . 1 2 7 3 2 1 1 Energy Gun 16 | 1 . . 3 . 5 2 . . . . . . . . . . . . . . . 2 2 . 1 . Energy Cannon 13 | . . . . . 2 . . 1 . . . 1 . . 2 1 . . . 1 1 3 . 1 . . Ballistic Gun 16 | 2 3 . 2 . 3 1 . . . . 1 . . . . . . . . . . 2 1 1 . . Ballistic Cannon 4 | . . . 3 . . . . . . . . . . . . . . . . . 1 . . . . . Launcher 4 | . 1 . . . 1 . . . . 1 . . . . . . . . . . . . . . . 1 Special Weapon 1 | . . . . . . . . . 1 . . . . . . . . . . . . . . . . . Impact Weapon 2 | . . . 1 . 1 . . . . . . . . . . . . . . . . . . . . . Slashing Weapon 2 | . . . . . . 2 . . . . . . . . . . . . . . . . . . . . Piercing Weapon 1 | . . . . . . . . . . . 1 . . . . . . . . . . . . . . . Special Melee Weapon . | . . . . . . . . . . . . . . . . . . . . . . . . . . . Unidentified Prototypes 24 | . . . . . 8 1 . 1 1 . 1 . . . . . . . 3 . . 1 5 . 1 2 Corrupted Parts 10 | . . . . . . . . . . . . . . . . . . . . . . 3 6 . . 1 System Corruption 43 | . . . . . . . . . . . . . . . . . . . . . . 9 24 . . 10 Parts Lost 79 | . 1 . 3 . 5 . . . . . . . . . 1 1 . 1 . 7 3 26 1 3 3 24 Power 9 | . . . . . . . . . . . . . . . . . . . . . 1 3 . . 1 4 Propulsion 18 | . . . . . 1 . . . . . . . . . . . . 1 . 4 . 5 . . . 7 Utility 32 | . 1 . . . 3 . . . . . . . . . 1 1 . . . 2 1 9 1 1 2 10 Weapon 20 | . . . 3 . 1 . . . . . . . . . . . . . . 1 1 9 . 2 . 3 Highest Loss Streak 23 | . 1 . 1 . 3 . . . . . . . . . 1 1 . 1 . 7 1 23 1 2 1 9 To Critical Strikes . | . . . . . . . . . . . . . . . . . . . . . . . . . . . Average Backups 17 | 3 7 8 15 20 19 19 20 20 20 20 19 20 20 20 19 19 20 19 20 14 11 16 14 18 22 16 Power 1 | . . 1 . 1 1 1 1 1 1 1 . . . . . 1 2 2 2 2 2 2 3 4 5 3 Propulsion 4 | 1 2 2 2 4 5 5 6 6 5 5 5 6 6 6 5 4 4 4 4 1 1 3 3 4 6 5 Utility 6 | . 2 2 7 9 8 7 8 8 8 8 7 7 7 7 7 6 7 7 7 5 5 6 4 6 6 3 Weapon 4 | . 1 3 4 6 5 5 5 5 5 6 6 7 7 7 6 6 6 6 7 5 3 4 1 2 3 2 Tool/Special . | . . . . . . . . . . . . . . . . . . . . . . . . . . . Unused Backups 28 | . 1 1 3 1 7 3 . . . . . . . . . 1 . . . . . 1 . 1 3 6 Power 3 | . . 1 1 . . . . . . . . . . . . . . . . . . . . 1 . . Propulsion 6 | . . . . . 1 . . . . . . . . . . . . . . . . 1 . . 1 3 Utility 10 | . 1 . 2 1 4 1 . . . . . . . . . . . . . . . . . . 1 . Weapon 7 | . . . . . 2 2 . . . . . . . . . 1 . . . . . . . . . 2 Tool/Special 2 | . . . . . . . . . . . . . . . . . . . . . . . . . 1 1 Average Slot Usage (%) 95 | . 99 100 99 100 99 99 100 95 95 100 99 100 100 100 99 99 100 99 83 78 88 89 72 85 85 72 Engine 6 | . 14 14 11 11 7 7 7 7 7 7 12 12 12 12 9 . . . . . . . . . . . Core 2 | . . . . . 1 . . . . . . . . . 2 11 11 11 7 5 5 8 . 4 . 2 Reactor 1 | . . . . . . . . . . . . . . . . . . . 2 5 4 . 10 9 12 9 Treads 26 | . 15 28 32 33 26 30 30 28 31 35 31 31 31 31 31 26 27 26 27 21 22 23 2 12 13 11 Device 11 | . 11 . . . 8 12 13 14 14 12 11 11 12 12 9 11 9 10 10 13 22 21 11 25 25 18 Storage 7 | . 14 14 11 11 9 7 7 7 7 7 6 6 6 6 6 5 5 5 5 5 5 5 5 4 4 3 Processor 7 | . . . . . 8 14 15 14 14 14 17 18 18 18 17 16 16 16 13 5 5 5 5 4 4 2 Hackware 1 | . . . . . . . . . . . . . . . . 4 5 5 8 11 6 4 5 4 . 1 Protection 6 | . 2 14 10 10 9 1 1 . . 1 . . . . 2 5 6 5 5 4 5 5 6 4 8 6 Energy Gun 7 | . . . 10 11 11 12 15 14 14 14 12 12 12 12 11 5 5 5 . . 1 2 1 4 3 1 Energy Cannon 3 | . . . . . 8 . . 3 6 . . . 4 6 2 9 10 10 . 4 8 6 4 . . 2 Ballistic Gun 5 | . 28 27 12 . 6 4 4 . . 2 . . . . 2 . . . . . . 2 . 6 9 5 Ballistic Cannon 3 | . . . 10 22 . . . . . . . . . . . . . . . . 2 1 . . . . Peak Build Rating 176 | 7 9 8 18 19 34 38 38 35 38 39 50 52 47 47 64 83 81 83 74 72 100 110 152 176 174 170 Average Rating 55 | 5 8 8 15 18 28 33 34 34 35 36 46 47 47 47 53 74 77 78 63 68 89 99 103 164 169 129 On Entrance 57 | . 7 8 8 18 18 34 34 35 35 36 39 47 47 47 47 59 76 78 78 64 72 98 90 149 166 170 Naked Turns 44 | . . . . . . . . . . . . . . . . . . . . . . . . . . 44 Heaviest Build 185 | 12 22 23 61 101 63 64 60 64 64 70 78 75 72 72 95 107 106 110 81 90 121 121 140 182 185 169 Greatest Support 240 | 20 40 40 60 60 60 80 80 80 100 108 118 108 108 108 108 116 116 115 115 101 128 169 240 240 235 235 Greatest Overweight (x) 8 | . . . 1 1 1 . . . . . . . . . . . . . . . 1 4 1 1 . 8 Average Overweight (x) . | . . . . 1 . . . . . . . . . . . . . . . . . . . . . . Largest Inventory Capacity 25 | 8 10 10 20 25 20 20 20 20 20 20 20 20 20 20 20 20 20 20 20 20 20 20 25 25 25 25 Average Capacity 19 | 7 8 10 17 20 20 20 20 20 20 20 20 20 20 20 20 20 20 20 20 20 20 20 20 25 25 23 Most Carried 25 | 4 8 9 20 21 20 20 20 20 20 20 20 20 20 20 20 20 20 20 20 20 14 20 20 25 25 23 Average Carried 17 | 3 7 8 15 20 19 19 20 20 19 20 19 20 20 20 19 19 20 19 20 14 11 16 15 19 24 18 Final Capacity 25 | 8 10 10 20 20 20 20 20 20 20 20 20 20 20 20 20 20 20 20 20 20 20 20 25 25 25 5 Final Carried 25 | 4 8 9 20 20 20 20 20 20 20 20 20 20 20 20 20 20 20 19 20 13 12 12 14 25 23 4 Class Distribution -------------------- 19% | Tank 17% | Scavenger-Skirmisher 13% | Scavenger-Tank 9% | Scavenger-Mutant 9% | Scavenger-Assassin 8% | Gunner 5% | Scavenger-Gunner 4% | Skirmisher 4% | Commander-Tank 3% | Hacker-Mutant 3% | Mutant Dominant Class ---------------- Mutant | -10/Materials Scavenger-Mutant | -10/Mines Tank | -9/Materials Tank | -9/Mines Gunner | -8/Materials Scavenger-Assassin | -7/Factory Scavenger-Skirmisher | -7/Lower Caves Scavenger-Skirmisher | -7/Lower Caves Scavenger-Skirmisher | -7/Zion Scavenger-Skirmisher | -6/Proximity Caves Scavenger-Assassin | -6/Factory Scavenger-Assassin | -6/Lower Caves Scavenger-Skirmisher | -6/Lower Caves Scavenger-Skirmisher | -6/Data Miner Skirmisher | -5/Proximity Caves Scavenger-Skirmisher | -5/Factory Scavenger-Skirmisher | -5/Upper Caves Scavenger-Skirmisher | -5/Upper Caves Hacker-Mutant | -5/Zhirov Hacker-Mutant | -4/Proximity Caves Skirmisher | -4/Factory Commander-Tank | -4/Extension Scavenger-Mutant | -4/Cetus Scavenger-Tank | -3/Research Scavenger-Tank | -3/Quarantine Scavenger-Mutant | -3/Protoforge Resources | -11 -10 -10 -9 -9 -8 -7 -7 -7 -7 -6 -6 -6 -6 -6 -5 -5 -5 -5 -5 -4 -4 -4 -4 -3 -3 -3 ----------- Run | Yrd Mat Min Mat Min Mat Fac Low Low Zio Pro Fac Low Low Dat Pro Fac Upp Upp Zhi Pro Fac Ext Cet Res Qua Frg Matter Collected 7714 | 320 518 94 666 94 965 335 202 16 84 234 27 191 30 . 487 445 174 110 . 167 365 778 164 427 339 482 Remotely . | . . . . . . . . . . . . . . . . . . . . . . . . . . . Salvage Created 11854 | 122 797 146 1119 65 2111 227 227 . . 121 11 70 . . 696 1006 46 107 . 120 401 2280 208 464 483 1027 Parts 536 | 12 33 8 61 8 110 7 12 . . 3 2 2 . . 31 41 9 12 . 11 25 57 6 18 33 35 Haulers Intercepted 12 | . 2 . 3 . 5 . . . . . . . . . . 2 . . . . . . . . . . Recyclers Shooed 9 | . 1 . 5 . . . . . . . . . . . . . . . . . . 3 . . . . Parts Field Recycled . | . . . . . . . . . . . . . . . . . . . . . . . . . . . Retrieved Matter . | . . . . . . . . . . . . . . . . . . . . . . . . . . . Parts Self-Destructed 107 | . . . . . . . 6 9 4 6 . 4 5 . 43 . 7 12 . 11 . . . . . . Prevented 5 | . . . . . . . . . . . . 2 . . 1 . . 2 . . . . . . . . Kills | -11 -10 -10 -9 -9 -8 -7 -7 -7 -7 -6 -6 -6 -6 -6 -5 -5 -5 -5 -5 -4 -4 -4 -4 -3 -3 -3 ------- Run | Yrd Mat Min Mat Min Mat Fac Low Low Zio Pro Fac Low Low Dat Pro Fac Upp Upp Zhi Pro Fac Ext Cet Res Qua Frg Combat Hostiles Destroyed 217 | . 13 3 22 3 34 3 3 . . 6 3 1 . . 9 18 10 8 . 6 10 31 3 7 7 17 Melee 2 | . . . . . . . . . . . . . . . 1 . . . . 1 . . . . . . Guns 90 | . 13 2 15 1 16 3 3 . . 1 . . . . 7 3 1 . . . 2 11 . 5 5 2 Cannons 59 | . . . 7 2 10 . . . . . . 1 . . 1 8 . 3 . 5 7 11 1 1 . 2 AOE 43 | . . 1 . . 6 . . . . 5 3 . . . . 6 9 5 . . . 1 . . . 7 Classes Destroyed 19 | 2 5 . 2 . 4 1 1 . . . . 1 . . 1 . . . . 1 . 1 . . . . Worker 7 | . 1 . 1 1 3 . . . . . . . . . . 1 . . . . . . . . . . Builder 4 | . . . 1 . 2 . . . . . . . . . . . . . . . . . . . . 1 Tunneler 4 | 3 . . . 1 . . . . . . . . . . . . . . . . . . . . . . Hauler 12 | . 2 . 3 . 5 . . . . . . . . . . 2 . . . . . . . . . . Recycler 8 | 1 2 1 2 . 1 . . . . . . . . . . . . . . . . 1 . . . . Mechanic 1 | . . . . . 1 . . . . . . . . . . . . . . . . . . . . . Drone 1 | . . . . . . . . . . . . . . . . . . . . 1 . . . . . . Watcher 13 | . 2 . 3 . 4 1 . . . . . . . . 2 . . . . . 1 . . . . . Swarmer 56 | . 3 1 2 . . . . . . 2 3 . . . . 5 10 8 . 5 5 5 . 2 . 5 Saboteur 1 | . . . . . . . . . . . . . . . . . . . . . . 1 . . . . Grunt 80 | . 10 2 11 3 21 . 2 . . 4 . . . . 4 4 . . . . 1 15 . . . 3 Brawler 7 | . . . . . 1 . 1 . . . . . . . 2 1 . . . . . 1 . . . 1 Duelist 4 | . . . . . 2 . . . . . . . . . . . . . . . . 2 . . . . Sentry 27 | . . . 9 . 9 2 . . . . . . . . 1 1 . . . . . 4 . 1 . . Hunter 8 | . . . . . . . . . . . . 1 . . . 1 . . . . . . . 4 2 . Programmer 19 | . . . . . . 1 . . . . . . . . 1 6 . . . . 4 1 . . 5 1 Heavy 1 | . . . . . 1 . . . . . . . . . . . . . . . . . . . . . Behemoth 2 | . . . . . . . . . . . . . . . 1 . . . . . . 1 . . . . Cetus Guard 3 | . . . . . . . . . . . . . . . . . . . . . . . 3 . . . Hotshot 7 | . . . . . . . . . . . . . . . . . . . . . . . . . . 7 Samaritan 1 | . . . . . . . 1 . . . . . . . . . . . . . . . . . . . Thug 1 | . . . . . . . . . . . . . . . . . . . . . . 1 . . . . Butcher 1 | . . . . . . . . . . . . . . . . . . . . . . 1 . . . . Best Kill Streak 9 | 3 3 2 3 2 7 2 3 . . 3 3 1 . . 3 5 5 5 . 5 5 9 2 2 2 6 Combat Bots Only 9 | . 3 2 3 2 7 1 3 . . 3 3 1 . . 3 5 5 5 . 5 5 9 2 2 2 5 Max Kills in Single Turn 4 | 1 1 1 2 1 4 1 1 . . 1 2 1 . . 1 2 3 2 . 1 1 2 1 1 1 2 Gunslinging . | . . . . . . . . . . . . . . . . . . . . . . . . . . . Exploded 4 | . . 1 . . 4 . . . . 1 2 . . . . 2 3 2 . . . 1 . . . 2 Melee 1 | . . . . . . . . . . . . . . . 1 . . . . 1 . . . . . . Uniques/NPCs Destroyed . | . . . . . . . . . . . . . . . . . . . . . . . . . . . Combat | -11 -10 -10 -9 -9 -8 -7 -7 -7 -7 -6 -6 -6 -6 -6 -5 -5 -5 -5 -5 -4 -4 -4 -4 -3 -3 -3 -------- Run | Yrd Mat Min Mat Min Mat Fac Low Low Zio Pro Fac Low Low Dat Pro Fac Upp Upp Zhi Pro Fac Ext Cet Res Qua Frg Hostile Shots Fired 1492 | . 43 24 66 13 139 35 1 . . 5 7 9 . . 28 50 25 25 . 63 77 349 31 112 113 277 Missed 400 | . 8 6 10 5 31 8 1 . . 2 2 3 . . 8 14 8 5 . 10 34 88 13 42 36 66 Hits 1092 | . 35 18 56 8 108 27 . . . 3 5 6 . . 20 36 17 20 . 53 43 261 18 70 77 211 Melee 32 | . . . . . 3 . . . . . . . . . . . . . . . . 27 . . . 2 Projectile 1060 | . 35 18 56 8 105 27 . . . 3 5 6 . . 20 36 17 20 . 53 43 234 18 70 77 209 AOE 1 | . . . . . . . . . . . . . . . . . . . . . . 1 . . . . Critical Strikes 67 | . . . 3 . 8 . . . . . . . . . 1 3 . . . 2 2 22 3 2 3 18 Actively Blocked 46 | . . . . . . . . . . . . . . . . . . . . . . 22 3 2 3 16 Part Disruptions 1 | . . . 1 . . . . . . . . . . . . . . . . . . . . . . . Damage Taken 21094 | . 477 199 856 97 2021 236 . . . 42 57 106 11 . 473 771 261 228 . 796 612 5001 495 1288 1221 5846 Core 2887 | . 86 20 71 . 229 5 . . . . 13 . . . . 39 17 8 . 18 39 984 52 64 162 1080 Absorbed by Shields 2045 | . . . . . . 24 . . . 8 16 . 12 . . 30 24 120 . . 138 716 . 241 716 . Reduced by Siege Mode 406 | . . . . . . . . . . . . . . . . . . . . . . . . 8 . 398 Redirected to Shielding 263 | . . . . . . . . . . . . . . . . . . . . . . . . . . 263 Ignored by Resistances 35 | . . . . . . . . . . . . . . . . . . . . . . 19 16 . . . Regen/Repaired (Parts) 584 | . 92 . 149 . 95 123 . . . . . . . . . 125 . . . . . . . . . . Core Remaining (%) 73 | 100 . 57 . 82 58 . . . . 99 . . . . 98 . . . . 91 . . 6 . . . Volleys Fired 741 | 10 62 11 61 8 103 14 4 15 . 10 2 5 8 . 28 54 11 9 . 24 28 93 26 48 42 65 Largest 3 | 2 2 2 3 3 3 3 3 1 . 2 1 1 1 . 3 3 2 3 . 1 3 3 1 3 3 3 Hottest 310 | 40 40 40 150 131 201 147 147 65 . 122 39 75 65 . 212 256 151 256 . 90 256 270 75 240 240 310 Shots Fired 1556 | 20 123 20 174 24 293 39 13 15 . 14 2 5 8 . 78 106 13 17 . 24 60 228 25 95 76 84 Gun 947 | 20 122 18 131 8 179 39 13 . . 8 . . . . 68 28 2 4 . . 12 96 1 85 64 49 Cannon 571 | . . . 42 16 111 . . 15 . . . 5 8 . 10 75 4 9 . 23 48 132 24 10 12 27 Launcher 38 | . 1 2 1 . 3 . . . . 6 2 . . . . 3 7 4 . 1 . . . . . 8 Special . | . . . . . . . . . . . . . . . . . . . . . . . . . . . Kinetic 554 | 20 122 18 121 16 69 14 5 . . . . . . . 18 . . . . . 4 57 1 36 34 19 Thermal 872 | . . . 52 8 221 25 8 15 . 8 . . 8 . 60 100 6 13 . 23 56 160 . 49 30 30 Explosive 38 | . 1 2 1 . 3 . . . . 6 2 . . . . 3 7 4 . 1 . . . . . 8 Electromagnetic 92 | . . . . . . . . . . . . 5 . . . 3 . . . . . 11 24 10 12 27 Robot Hit Streak 36 | 6 15 7 15 7 16 14 10 . . 8 . 10 . . 24 11 3 2 . 2 9 12 4 9 7 36 Robot Miss Streak 8 | 1 2 3 8 5 4 2 1 . . 2 . 1 . . 2 4 3 3 . 2 4 2 1 3 4 1 Penetration Max 1 | . . . . . . . . . . . . . . . . . . . . . . 1 . . . . Secondary Targets 11 | . 1 1 3 . 1 . 1 . . . . . . . 2 . . . . . . . . 1 . 1 Max Gunslinging Chain 1 | . 1 1 1 . 1 . 1 . . . . . . . 1 . . . . . . . . 1 . 1 Shots Hit Robots 982 | 14 81 12 116 15 209 28 11 . . 8 . 4 . . 63 52 2 6 . 9 26 156 17 52 35 66 Core Hits 539 | 7 37 6 85 12 95 11 8 . . 22 7 2 . . 31 31 15 10 . 7 12 66 7 19 10 39 Critical Kills 16 | 1 1 . . . 1 . . . . . . . . . . . . . . . 2 11 . . . . Critical Parts Destroyed 11 | . . . . . 2 . . . . . . . . . . . . . . . . 6 . 2 1 . Critical Strikes 47 | 1 1 . 2 1 8 2 . . . 1 . 1 . . 3 2 . . . . 2 20 . 2 1 . Burn 16 | . . . . . 5 2 . . . 1 . . . . 3 2 . . . . . 3 . . . . Meltdown 7 | . . . . . . . . . . . . . . . . . . . . . 1 6 . . . . Destroy 20 | 1 1 . . . 3 . . . . . . . . . . . . . . . 1 11 . 2 1 . Blast 3 | . . . 2 1 . . . . . . . . . . . . . . . . . . . . . . Corrupt 1 | . . . . . . . . . . . . 1 . . . . . . . . . . . . . . Melee Attacks 34 | . . . 1 . 1 12 2 3 . . 4 1 2 . 3 3 . . . . . 2 . . . . Impact 2 | . . . 1 . 1 . . . . . . . . . . . . . . . . . . . . . Slashing 17 | . . . . . . 12 2 3 . . . . . . . . . . . . . . . . . . Piercing 15 | . . . . . . . . . . . 4 1 2 . 3 3 . . . . . 2 . . . . Sneak Attacks 2 | . . . . . . . 1 . . . . . . . 1 . . . . . . . . . . . Combat Hostiles . | . . . . . . . . . . . . . . . . . . . . . . . . . . . Follow-up Attacks . | . . . . . . . . . . . . . . . . . . . . . . . . . . . Damage Inflicted 28740 | 139 917 249 1676 294 4702 501 225 . . 949 239 211 . . 1278 2103 1043 510 . 321 914 5341 507 1398 1258 3965 Guns 12586 | 139 906 153 1195 94 2497 501 167 . . 118 . . . . 988 404 18 33 . . 191 1983 18 1165 1043 973 Cannons 9566 | . . . 463 147 1533 . . . . . . 133 . . 219 1170 . 100 . 283 615 3005 489 233 215 961 Explosions 6084 | . . 85 . . 668 . . . . 831 239 78 . . . 506 1025 377 . . 108 149 . . . 2018 Melee 260 | . . . . . . . 58 . . . . . . . 71 . . . . . . 131 . . . . Ramming 244 | . 11 11 18 53 4 . . . . . . . . . . 23 . . . 38 . 73 . . . 13 Kinetic 6279 | 139 906 153 1054 147 763 155 30 . . . . . . . 177 . . . . . 20 1218 18 543 579 377 Thermal 14070 | . . . 604 94 3267 346 137 . . 118 . 78 . . 1030 1480 18 133 . 283 894 3708 . 622 464 794 Explosive 5551 | . . 85 . . 668 . . . . 831 239 . . . . 506 1025 377 . . . . . . . 1820 Electromagnetic 2336 | . . . . . . . . . . . . 133 . . . 94 . . . . . 211 489 233 215 961 Impact . | . . . . . . . . . . . . . . . . . . . . . . . . . . . Slashing 58 | . . . . . . . 58 . . . . . . . . . . . . . . . . . . . Piercing 202 | . . . . . . . . . . . . . . . 71 . . . . . . 131 . . . . Highest Corruption 44 | . . . . . 5 5 5 5 5 . . . . . . 3 3 3 3 3 2 20 44 3 12 37 Average Corruption 5 | . . . . . 4 3 5 5 5 . . . . . . 2 3 3 3 3 1 6 22 3 6 19 Corruption Purged . | . . . . . . . . . . . . . . . . . . . . . . . . . . . Corruption Blocked . | . . . . . . . . . . . . . . . . . . . . . . . . . . . Effects 292 | . . . . . 69 9 5 17 3 . . . . . . 3 5 3 5 5 5 60 18 19 30 36 Message Errors 66 | . . . . . 8 . . 8 1 . . . . . . . 1 3 1 3 . 14 6 4 9 8 Matter Fused 75 | . . . . . 22 3 . 4 1 . . . . . . 1 1 . 2 1 3 16 3 5 7 6 Heat Flow Errors 33 | . . . . . 10 . 2 . 1 . . . . . . . 1 . . . . 9 1 1 4 4 Energy Discharges 27 | . . . . . 6 . 2 3 . . . . . . . . 1 . . . 1 2 2 3 1 6 Parts Rejected 5 | . . . . . 1 . . . . . . . . . . . . . . . . . . . 2 2 Parts Fused 3 | . . . . . 1 . . . . . . . . . . . . . . . . 1 . . 1 . Data Loss (minor) 30 | . . . . . 4 2 . 1 . . . . . . . . . . 1 1 . 8 2 3 5 3 Data Loss (major) 20 | . . . . . 6 3 . . . . . . . . . . 1 . 1 . . 4 1 . 1 3 Misfires 11 | . . . . . 5 . 1 . . . . . . . . 2 . . . . . . . 1 . 2 Alerts 7 | . . . . . 2 1 . 1 . . . . . . . . . . . . . 1 1 1 . . Misdirections 3 | . . . . . . . . . . . . . . . . . . . . . . 1 . . . 2 Weapon Failures 12 | . . . . . 4 . . . . . . . . . . . . . . . 1 4 2 1 . . Overload Shots 26 | . . . . . . . . . . . . . . . . . . . . . . . . 13 10 3 Overflow Damage 341 | . . . 4 1 20 . . . . . . . . . . 62 52 20 . 3 40 106 3 . . 30 Projectiles 183 | . . . 4 . 15 . . . . . . . . . . 54 . . . 3 31 73 3 . . . Explosions 124 | . . . . . 5 . . . . . . . . . . 8 52 20 . . 9 . . . . 30 Melee 34 | . . . . 1 . . . . . . . . . . . . . . . . . 33 . . . . Knockbacks 10 | . . . 3 2 . . . . . . . . . . . . . . . . . 5 . . . . Impact . | . . . . . . . . . . . . . . . . . . . . . . . . . . . Kinetic 10 | . . . 3 2 . . . . . . . . . . . . . . . . . 5 . . . . Secondary . | . . . . . . . . . . . . . . . . . . . . . . . . . . . Self-Inflicted Damage 408 | . . . . . . . . . . . . . . . . 100 22 45 . . . 79 . . . 162 Shots 7 | . . . . . . . . . . . . . . . . 1 2 1 . . . 1 . . . 2 Rammed 31 | . 1 2 1 3 2 . . . . . . . . . . 2 . . . 8 . 8 . . . 4 Targets Rammed 39 | . 4 3 3 5 2 . . . . . . . . . . 2 . . . 8 . 8 . . . 4 Kicked 2 | . 2 . . . . . . . . . . . . . . . . . . . . . . . . . Crushed 6 | . 1 1 2 2 . . . . . . . . . . . . . . . . . . . . . . Highest Temperature 510 | . 37 17 365 448 510 162 339 80 254 108 . . 70 . 347 357 159 175 . 288 . 83 66 256 212 215 Average Temperature 94 | . 11 7 75 164 114 53 142 32 132 53 . . 33 . 133 92 60 82 . 138 . 27 66 97 79 101 Received Heat Transfer 3572 | . 234 93 342 54 891 37 . . . 7 . . 4 . 72 81 . . . . . 350 18 33 21 1335 Effects 12 | . . . 1 1 3 . . . . . . . . . 2 4 . . . 1 . . . . . . Shutdowns 3 | . . . . 1 1 . . . . . . . . . . 1 . . . . . . . . . . Energy Bleed 3 | . . . 1 . . . . . . . . . . . 1 . . . . 1 . . . . . . Interference 4 | . . . . . 1 . . . . . . . . . . 3 . . . . . . . . . . Matter Decay 1 | . . . . . . . . . . . . . . . 1 . . . . . . . . . . . Damage (minor) 1 | . . . . . 1 . . . . . . . . . . . . . . . . . . . . . Siege Activations 4 | . . . . . . . . . . . . . . . . . . . . . . . . 1 . 3 Total Turns 112 | . . . . . . . . . . . . . . . . . . . . . . . . 4 . 108 Longest Duration 43 | . . . . . . . . . . . . . . . . . . . . . . . . 4 . 43 Martial Activations . | . . . . . . . . . . . . . . . . . . . . . . . . . . . Shielding Activations . | . . . . . . . . . . . . . . . . . . . . . . . . . . . Robots Disrupted . | . . . . . . . . . . . . . . . . . . . . . . . . . . . Combat Hostiles . | . . . . . . . . . . . . . . . . . . . . . . . . . . . Robots Corrupted 11 | . . . . . . . . . . . . . . . . . . . . . . . 2 1 2 6 Combat Hostiles 11 | . . . . . . . . . . . . . . . . . . . . . . . 2 1 2 6 Parts Fried 24 | . . . . . . . . . . . . . . . . 2 . . . . . 4 3 1 4 10 Impact Corruptions 1 | . . . . 1 . . . . . . . . . . . . . . . . . . . . . . Robots Melted 13 | . . . . . 2 . . . . . . . . . . 1 . . . . 1 9 . . . . Combat Hostiles 12 | . . . . . 2 . . . . . . . . . . 1 . . . . 1 8 . . . . Parts Melted 57 | . . . . . 13 1 . . . . . . . . 5 6 . . . . 5 23 . 4 . . Heat Transferred 23420 | . . . 800 115 6421 851 296 . . 333 . 50 . . 2146 2243 37 211 . 450 1129 6227 . 777 444 890 Parts Sabotaged . | . . . . . . . . . . . . . . . . . . . . . . . . . . . Parts Stolen . | . . . . . . . . . . . . . . . . . . . . . . . . . . . Parts Stripped . | . . . . . . . . . . . . . . . . . . . . . . . . . . . Power Chain Reactions 4 | . . . . . . . . . . . . 1 . . . . . . . . . 1 . . . 2 Alert | -11 -10 -10 -9 -9 -8 -7 -7 -7 -7 -6 -6 -6 -6 -6 -5 -5 -5 -5 -5 -4 -4 -4 -4 -3 -3 -3 ------- Run | Yrd Mat Min Mat Min Mat Fac Low Low Zio Pro Fac Low Low Dat Pro Fac Upp Upp Zhi Pro Fac Ext Cet Res Qua Frg Maximum Alert Level 5 | . . . 1 . 1 . . . . . 1 . . . . 1 . . . . 2 5 3 2 1 1 Low Security (%) 74 | 100 100 100 94 100 82 100 . . . . 97 . . . . 93 . . . . 3 32 . . 97 62 Level 1 13 | . . . 5 . 17 . . . . . 2 . . . . 6 . . . . 82 11 . 30 2 37 Level 2 5 | . . . . . . . . . . . . . . . . . . . . . 13 8 . 69 . . Level 3 3 | . . . . . . . . . . . . . . . . . . . . . . 20 100 . . . Level 4 1 | . . . . . . . . . . . . . . . . . . . . . . 16 . . . . Level 5 1 | . . . . . . . . . . . . . . . . . . . . . . 10 . . . . High Security . | . . . . . . . . . . . . . . . . . . . . . . . . . . . Max Security . | . . . . . . . . . . . . . . . . . . . . . . . . . . . Peak Influence 1804 | 10 125 75 220 91 299 37 . . . . 209 . . . . 336 . . . . 450 1804 1098 635 211 294 Initial 1009 | . . . 1 27 25 . . . . . 150 . . . . 13 . . . . 450 116 1009 631 170 . Average 183 | 1 28 12 111 12 138 3 . . . . 130 . . . . 70 . . . . 286 687 1058 474 85 115 Influence Increases 10374 | 20 446 152 909 119 1105 125 85 . . 435 205 78 26 . 237 797 220 180 . 115 905 2860 254 228 301 572 Destroy 0b10 Robot/C 5460 | . 260 100 560 60 680 60 60 . . 280 80 40 20 . 180 380 200 160 . 100 200 1260 160 140 140 340 Destroy 0b10 Robot/NC 290 | 20 35 5 50 10 80 5 . . . . 5 . . . 10 25 . . . 5 5 20 10 . . 5 Destroy Leader 972 | . 68 20 192 20 188 32 10 . . 20 10 20 . . 40 78 20 20 . 10 32 102 . 30 30 30 Allied During Kill 1586 | . . 10 28 . . . . . . 120 28 18 6 . 7 70 . . . . . 1233 66 . . . Successful Hack 230 | . 28 . 60 12 9 16 . . . . 28 . . . . 10 . . . . . 29 . . 38 . Disable Machine 375 | . . . . 15 45 . . . . . 30 . . . . 75 . . . . 60 30 . 30 60 30 Destroy Structure 591 | . 10 17 19 2 13 12 . . . . 24 . . . . 144 . . . . 68 66 18 28 18 152 Advance Influence 450 | . . . . . . . . . . . . . . . . . . . . . 450 . . . . . Lose Combat Pursuer 420 | . 45 . . . 90 . 15 . . 15 . . . . . 15 . . . . 90 120 . . 15 15 Influence Decreases 10166 | 20 446 147 842 125 1171 125 85 . . 196 319 203 26 . 215 497 310 253 159 115 666 1295 1005 978 603 365 Entered New Map 2033 | . . . 4 45 41 . . . . . 89 47 . . . 9 120 45 159 . . 123 795 422 133 1 Time Decay 6107 | 20 323 127 638 80 649 125 85 . . 196 230 156 26 . 215 418 190 198 . 65 486 612 140 486 440 202 Search Patrol Dispatched 150 | . . . . . . . . . . . . . . . . . . . . . 150 . . . . . Lost Part 682 | . 10 . 30 . 50 . . . . . . . . . . 10 . 10 . 50 30 260 10 30 30 162 Lost Ally 500 | . . 20 20 . . . . . . . . . . . . 60 . . . . . 300 60 40 . . Purge Threat 694 | . 113 . 150 . 431 . . . . . . . . . . . . . . . . . . . . . Squads Dispatched 43 | . 2 . 4 . 3 5 . . . . 1 . . . 2 5 . . . . 5 6 . 6 3 1 Investigation 10 | . . . 1 . 1 1 . . . . . . . . 1 . . . . . 1 1 . 3 1 . Extermination 11 | . . . . . . 3 . . . . 1 . . . . 2 . . . . 2 . . . 2 1 Reinforcement 19 | . 2 . 3 . 2 . . . . . . . . . 1 3 . . . . 2 3 . 3 . . Assault 2 | . . . . . . . . . . . . . . . . . . . . . . 2 . . . . Garrison 1 | . . . . . . 1 . . . . . . . . . . . . . . . . . . . . Intercept . | . . . . . . . . . . . . . . . . . . . . . . . . . . . Searches Triggered 1 | . . . . . . . . . . . . . . . . . . . . . 1 . . . . . Data Miner Redirects 2 | . . . . . . . . . . . . . . . . . . . . . . 2 . . . . Construction Impeded 4 | . . . . . . . . . . . . . . . 1 1 . . . . . 2 . . . . Haulers Reinforced 1 | . . . . . . . . . . . . . . . . . . . . . . . . 1 . . Active Scanning Responses . | . . . . . . . . . . . . . . . . . . . . . . . . . . . Cargo Convoy Interrupts . | . . . . . . . . . . . . . . . . . . . . . . . . . . . Stealth | -11 -10 -10 -9 -9 -8 -7 -7 -7 -7 -6 -6 -6 -6 -6 -5 -5 -5 -5 -5 -4 -4 -4 -4 -3 -3 -3 --------- Run | Yrd Mat Min Mat Min Mat Fac Low Low Zio Pro Fac Low Low Dat Pro Fac Upp Upp Zhi Pro Fac Ext Cet Res Qua Frg Distress Signals 20 | . 2 . 1 . 4 . . . . . . . . . 1 2 . . . . . 2 2 6 . . Communications Jammed 54 | . . . . . . . . . . . . . . . 6 . . . . . . . . 1 5 42 Distress Signals 50 | . . . . . . . . . . . . . . . 6 . . . . . . . . . 5 39 Times Spotted 370 | . 26 5 38 3 48 6 3 . . 11 2 1 1 . 17 24 8 7 . 9 12 76 10 17 15 31 Peak Tracking Total 24 | . 5 3 3 2 10 2 3 . . 9 4 1 1 . 4 5 5 4 . 5 6 24 5 2 3 14 Tactical Retreats 16 | . 2 . . . 5 . 1 . . 1 . . . . . 1 . . . . 1 3 . . 1 1 Traps | -11 -10 -10 -9 -9 -8 -7 -7 -7 -7 -6 -6 -6 -6 -6 -5 -5 -5 -5 -5 -4 -4 -4 -4 -3 -3 -3 ------- Run | Yrd Mat Min Mat Min Mat Fac Low Low Zio Pro Fac Low Low Dat Pro Fac Upp Upp Zhi Pro Fac Ext Cet Res Qua Frg Traps Triggered 10 | . 1 . 2 . . 1 . . . . . . . . . . . . . . 1 2 . 1 1 1 Indirectly . | . . . . . . . . . . . . . . . . . . . . . . . . . . . Trap Hack Attempts . | . . . . . . . . . . . . . . . . . . . . . . . . . . . Triggered . | . . . . . . . . . . . . . . . . . . . . . . . . . . . Disarmed . | . . . . . . . . . . . . . . . . . . . . . . . . . . . Reprogrammed . | . . . . . . . . . . . . . . . . . . . . . . . . . . . Reused . | . . . . . . . . . . . . . . . . . . . . . . . . . . . Traps Extracted . | . . . . . . . . . . . . . . . . . . . . . . . . . . . Installed . | . . . . . . . . . . . . . . . . . . . . . . . . . . . Triggered . | . . . . . . . . . . . . . . . . . . . . . . . . . . . Machines | -11 -10 -10 -9 -9 -8 -7 -7 -7 -7 -6 -6 -6 -6 -6 -5 -5 -5 -5 -5 -4 -4 -4 -4 -3 -3 -3 ---------- Run | Yrd Mat Min Mat Min Mat Fac Low Low Zio Pro Fac Low Low Dat Pro Fac Upp Upp Zhi Pro Fac Ext Cet Res Qua Frg Machines Disabled 30 | . . . . 1 3 . . . . 1 2 . . . 1 5 . . . . 4 5 . 2 4 2 Max in Single Turn 4 | . . . . 1 1 . . . . 1 2 . . . 1 4 . . . . 3 1 . 1 1 1 Garrison Access 4 | . . . . . . 1 . . . . . . . . . 2 . . . . . . . 1 . . Machines Repaired . | . . . . . . . . . . . . . . . . . . . . . . . . . . . Machines Dismantled . | . . . . . . . . . . . . . . . . . . . . . . . . . . . Machines Sabotaged . | . . . . . . . . . . . . . . . . . . . . . . . . . . . Overloaded Fab Kills . | . . . . . . . . . . . . . . . . . . . . . . . . . . . Hacking | -11 -10 -10 -9 -9 -8 -7 -7 -7 -7 -6 -6 -6 -6 -6 -5 -5 -5 -5 -5 -4 -4 -4 -4 -3 -3 -3 --------- Run | Yrd Mat Min Mat Min Mat Fac Low Low Zio Pro Fac Low Low Dat Pro Fac Upp Upp Zhi Pro Fac Ext Cet Res Qua Frg Machines Accessed 79 | . 10 . 14 1 14 9 . . . . 4 . . 4 1 6 . . 4 . 1 4 . 3 4 . Terminals 42 | . 7 . 8 1 9 3 . . . . 4 . . . 1 1 . . . . . 3 . 1 4 . Fabricators 2 | . . . . . . 1 . . . . . . . . . 1 . . . . . . . . . . Repair Stations 7 | . 1 . 2 . 2 1 . . . . . . . . . 1 . . . . . . . . . . Recycling Units 11 | . 2 . 2 . 2 1 . . . . . . . . . 1 . . . . 1 1 . 1 . . Scanalyzers 3 | . . . 2 . . 1 . . . . . . . . . . . . . . . . . . . . Garrison Access 6 | . . . . . 1 2 . . . . . . . . . 2 . . . . . . . 1 . . Total Hacks 219 | . 31 . 41 4 33 22 . . . . 8 . . 27 1 14 . . 17 . 2 7 . 6 6 . Successful 128 | . 20 . 24 2 11 9 . . . . 3 . . 27 1 6 . . 17 . 1 5 . . 2 . Failed 91 | . 11 . 17 2 22 13 . . . . 5 . . . . 8 . . . . 1 2 . 6 4 . Catastrophic 23 | . 2 . 2 1 7 3 . . . . 3 . . . . 1 . . . . . . . 2 2 . Database Lockouts . | . . . . . . . . . . . . . . . . . . . . . . . . . . . Manual 71 | . 16 . 20 5 18 5 . . 1 . 1 . . . . 1 . . . . . 2 . 1 1 . Terminals 107 | . 24 . 22 4 23 11 . . . . 8 . . . 1 1 . . . . . 6 . 1 6 . Fabricators 4 | . . . . . . 1 . . . . . . . . . 3 . . . . . . . . . . Repair Stations 23 | . 3 . 8 . 4 4 . . . . . . . . . 4 . . . . . . . . . . Recycling Units 22 | . 4 . 5 . 4 1 . . . . . . . . . 3 . . . . 2 1 . 2 . . Scanalyzers 7 | . . . 6 . . 1 . . . . . . . . . . . . . . . . . . . . Garrison Access 12 | . . . . . 2 4 . . . . . . . . . 3 . . . . . . . 3 . . Terminal Hacks 69 | . 5 . 5 2 4 2 . . . . 2 . . 27 1 . . . 17 . . 2 . . 2 . Record 16 | . . . . . . . . . . . . . . 11 . . . . 5 . . . . . . . Part Schematic 13 | . . . . . . . . . . . . . . 9 . . . . 4 . . . . . . . Robot Schematic 4 | . . . . . . . . . . . . . . 4 . . . . . . . . . . . . Robot Analysis 6 | . . . . 2 . . . . . . . . . . . . . . 4 . . . . . . . Prototype ID Bank 9 | . 2 . . . . . . . . . . . . 3 . . . . 4 . . . . . . . Open Door 1 | . . . . . . . . . . . . . . . 1 . . . . . . . . . . . Branch Access Points 4 | . . . 1 . 1 1 . . . . 1 . . . . . . . . . . . . . . . Terminal Index 1 | . 1 . . . . . . . . . . . . . . . . . . . . . . . . . Unreport Threat 5 | . 1 . 1 . 3 . . . . . . . . . . . . . . . . . . . . . Locate Traps 6 | . . . 1 . . . . . . . 1 . . . . . . . . . . 2 . . 2 . Hauler Manifests 2 | . 1 . 1 . . . . . . . . . . . . . . . . . . . . . . . Zone Layout 2 | . . . 1 . . 1 . . . . . . . . . . . . . . . . . . . . Fabricator Hacks . | . . . . . . . . . . . . . . . . . . . . . . . . . . . Repair Station Hacks 17 | . 2 . 5 . 4 4 . . . . . . . . . 2 . . . . . . . . . . Scan Component 9 | . 1 . 3 . 2 2 . . . . . . . . . 1 . . . . . . . . . . Repair 8 | . 1 . 2 . 2 2 . . . . . . . . . 1 . . . . . . . . . . Recycling Unit Hacks 8 | . 2 . 2 . 1 . . . . . . . . . . 1 . . . . 1 1 . . . . Retrieve Components 8 | . 2 . 2 . 1 . . . . . . . . . . 1 . . . . 1 1 . . . . Scanalyzer 5 | . . . 4 . . 1 . . . . . . . . . . . . . . . . . . . . Insert Component 3 | . . . 2 . . 1 . . . . . . . . . . . . . . . . . . . . Analyze 2 | . . . 2 . . . . . . . . . . . . . . . . . . . . . . . Garrison Access Hacks 3 | . . . . . . 1 . . . . . . . . . 2 . . . . . . . . . . Seal Access 3 | . . . . . . 1 . . . . . . . . . 2 . . . . . . . . . . Unauthorized Hacks 26 | . 11 . 8 . 2 1 . . . . 1 . . . . 1 . . . . . 2 . . . . Terminals 23 | . 9 . 7 . 2 1 . . . . 1 . . . . 1 . . . . . 2 . . . . Assimilate 1 | . . . . . . . . . . . . . . . . 1 . . . . . . . . . . Botnet 12 | . 4 . 2 . 2 1 . . . . 1 . . . . . . . . . . 2 . . . . Skim 10 | . 5 . 5 . . . . . . . . . . . . . . . . . . . . . . . Fabricators . | . . . . . . . . . . . . . . . . . . . . . . . . . . . Repair Stations . | . . . . . . . . . . . . . . . . . . . . . . . . . . . Recycling Units 3 | . 2 . 1 . . . . . . . . . . . . . . . . . . . . . . . Mask 3 | . 2 . 1 . . . . . . . . . . . . . . . . . . . . . . . Scanalyzers . | . . . . . . . . . . . . . . . . . . . . . . . . . . . Garrison Access . | . . . . . . . . . . . . . . . . . . . . . . . . . . . Data Cores Recovered . | . . . . . . . . . . . . . . . . . . . . . . . . . . . Used . | . . . . . . . . . . . . . . . . . . . . . . . . . . . Hacking Detections 55 | . 7 . 12 1 12 6 . . . . 4 . . . . 2 . . . . 1 4 . 3 3 . Full Trace Events 5 | . . . 1 . 2 1 . . . . . . . . . . . . . . . . . . 1 . Feedback Events 2 | . . . . . 1 1 . . . . . . . . . . . . . . . . . . . . Corruption 2 | . . . . . 1 1 . . . . . . . . . . . . . . . . . . . . Feedback Blocked . | . . . . . . . . . . . . . . . . . . . . . . . . . . . Robot Schematics Acquired 4 | . . . . . . . . . . . . . . 4 . . . . . . . . . . . . Robots Built . | . . . . . . . . . . . . . . . . . . . . . . . . . . . Authchips . | . . . . . . . . . . . . . . . . . . . . . . . . . . . Time . | . . . . . . . . . . . . . . . . . . . . . . . . . . . Total Robot Build Rating . | . . . . . . . . . . . . . . . . . . . . . . . . . . . Part Schematics Acquired 15 | . . . 2 . . . . . . . . . . 9 . . . . 4 . . . . . . . Parts Built . | . . . . . . . . . . . . . . . . . . . . . . . . . . . Authchips . | . . . . . . . . . . . . . . . . . . . . . . . . . . . Time . | . . . . . . . . . . . . . . . . . . . . . . . . . . . Total Part Build Rating . | . . . . . . . . . . . . . . . . . . . . . . . . . . . Parts Repaired 8 | . 1 . 2 . 2 2 . . . . . . . . . 1 . . . . . . . . . . Time 250 | . 26 . 64 . 52 86 . . . . . . . . . 22 . . . . . . . . . . Parts Recycled . | . . . . . . . . . . . . . . . . . . . . . . . . . . . Recycled Matter . | . . . . . . . . . . . . . . . . . . . . . . . . . . . Retrieved Matter . | . . . . . . . . . . . . . . . . . . . . . . . . . . . Retrieved Components 53 | . 11 . 12 . 10 . . . . . . . . . . 10 . . . . . 10 . . . . Parts Scanalyzed 2 | . . . 2 . . . . . . . . . . . . . . . . . . . . . . . Part Schematics Acquired 2 | . . . 2 . . . . . . . . . . . . . . . . . . . . . . . Parts Damaged . | . . . . . . . . . . . . . . . . . . . . . . . . . . . Bothacking | -11 -10 -10 -9 -9 -8 -7 -7 -7 -7 -6 -6 -6 -6 -6 -5 -5 -5 -5 -5 -4 -4 -4 -4 -3 -3 -3 ------------ Run | Yrd Mat Min Mat Min Mat Fac Low Low Zio Pro Fac Low Low Dat Pro Fac Upp Upp Zhi Pro Fac Ext Cet Res Qua Frg Used RIF Installer . | . . . . . . . . . . . . . . . . . . . . . . . . . . . Robots Hacked . | . . . . . . . . . . . . . . . . . . . . . . . . . . . Non-combat . | . . . . . . . . . . . . . . . . . . . . . . . . . . . Combat . | . . . . . . . . . . . . . . . . . . . . . . . . . . . Robot Hacks Applied . | . . . . . . . . . . . . . . . . . . . . . . . . . . . Relay Couplers Released 3 | . . . . . . . . . . . . . . . . . . . . . . . . 3 . . Machine Destruction 3 | . . . . . . . . . . . . . . . . . . . . . . . . 3 . . Fabnet Peak Effective % . | . . . . . . . . . . . . . . . . . . . . . . . . . . . Robots Rewired 28 | . . . . . . . . . . 1 . . . . 5 . . . . . . 22 . . . . Allies Hacked 4 | . . . . . . . . . . . . . . . . 3 . . . . . 1 . . . . Hacks Repelled . | . . . . . . . . . . . . . . . . . . . . . . . . . . . Allies | -11 -10 -10 -9 -9 -8 -7 -7 -7 -7 -6 -6 -6 -6 -6 -5 -5 -5 -5 -5 -4 -4 -4 -4 -3 -3 -3 -------- Run | Yrd Mat Min Mat Min Mat Fac Low Low Zio Pro Fac Low Low Dat Pro Fac Upp Upp Zhi Pro Fac Ext Cet Res Qua Frg Total Allies 40 | . . 3 . 1 . . . . 2 1 . . . . 5 . . . . . . 28 . . . . Largest Group 23 | . . 3 2 1 . . . . 2 2 2 2 2 2 5 5 . . . . . 23 5 2 . . Highest-Rated Group 1085 | . . 40 31 31 . . . . 192 192 128 128 128 128 182 182 . . . . . 1085 223 96 . . Highest-Rated Ally 159 | . . 16 16 31 . . . . 96 96 96 96 96 96 96 46 . . . . . 159 51 50 . . Total Orders . | . . . . . . . . . . . . . . . . . . . . . . . . . . . Ally Attacks 366 | . . 18 22 . . . . . . 28 4 4 1 . 7 34 . . . . . 202 41 5 . . Total Damage 9201 | . . 139 190 . . . . . . 1179 120 95 46 . 275 843 . . . . . 5228 1047 39 . . Kills 66 | . . 2 6 . . . . . . 8 2 1 1 . 1 3 . . . . . 35 7 . . . Allies Corrupted 2 | . . . . . . . . . . . . . . . . 1 . . . . . 1 . . . . Allies Melted 1 | . . . . . . . . . . . . . . . . . . . . . . 1 . . . . Intel | -11 -10 -10 -9 -9 -8 -7 -7 -7 -7 -6 -6 -6 -6 -6 -5 -5 -5 -5 -5 -4 -4 -4 -4 -3 -3 -3 ------- Run | Yrd Mat Min Mat Min Mat Fac Low Low Zio Pro Fac Low Low Dat Pro Fac Upp Upp Zhi Pro Fac Ext Cet Res Qua Frg Active Infowar (turns) 13911 | 7 366 . . . 65 1059 234 581 1532 350 470 348 558 155 1011 1362 390 407 379 360 1208 2 29 1265 1086 687 Optics 65 | . . . . . 65 . . . . . . . . . . . . . . . . . . . . . Sensors 11969 | . . . . . . 1054 232 581 1532 347 468 345 556 155 604 1112 358 374 379 359 1169 . 29 1013 802 500 Structural 11495 | . . . . . . 1051 231 574 1532 343 469 347 558 155 557 1103 331 375 372 360 1164 2 28 924 804 215 Seismic 373 | 7 366 . . . . . . . . . . . . . . . . . . . . . . . . . Decoding 2796 | . . . . . . . . . . . . . . . 488 1350 390 407 161 . . . . . . . Jamming 3402 | . . . . . . . . . . . . . . . 150 215 . . . . . . . 1264 1086 687 Robot Analysis Total 6 | . . . . 2 . . . . . . . . . . . . . . 4 . . . . . . . Derelict Logs Recovered 11 | . . 1 . 1 . . 1 2 1 1 . 1 1 . 1 . . 1 . . . . . . . . Drone Launches . | . . . . . . . . . . . . . . . . . . . . . . . . . . . Drone Recoveries . | . . . . . . . . . . . . . . . . . . . . . . . . . . . Decoded 0b10 Intel 87 | . . . . . . . . . . . . . . . . 87 . . . . . . . . . . Items 87 | . . . . . . . . . . . . . . . . 87 . . . . . . . . . . Exploration | -11 -10 -10 -9 -9 -8 -7 -7 -7 -7 -6 -6 -6 -6 -6 -5 -5 -5 -5 -5 -4 -4 -4 -4 -3 -3 -3 ------------- Run | Yrd Mat Min Mat Min Mat Fac Low Low Zio Pro Fac Low Low Dat Pro Fac Upp Upp Zhi Pro Fac Ext Cet Res Qua Frg Turns Passed 27334 | 110 1348 744 2279 3071 3424 1269 264 581 1532 427 485 381 558 155 1103 1362 390 407 379 404 1272 2012 295 1265 1086 731 Spaces Moved 12329 | 52 691 432 968 571 1316 643 138 337 948 223 279 189 329 93 507 649 214 227 212 185 605 932 119 659 509 302 Core 83 | 1 . . . . . . . . . . . . . . . . . . . . . . . . . 82 Treads 11712 | . 432 432 968 571 1316 643 138 337 948 223 279 189 329 93 507 649 214 227 212 185 605 809 22 659 509 216 Legs 432 | 51 259 . . . . . . . . . . . . . . . . . . . . 25 97 . . . Wheels 102 | . . . . . . . . . . . . . . . . . . . . . . 98 . . . 4 Hover . | . . . . . . . . . . . . . . . . . . . . . . . . . . . Flight . | . . . . . . . . . . . . . . . . . . . . . . . . . . . Fastest Speed 50 | 50 120 160 160 240 160 160 160 160 160 160 160 160 160 160 160 160 160 162 162 155 155 130 120 160 166 50 Average Speed 171 | 118 145 160 189 240 215 160 160 160 160 160 160 160 160 160 160 160 161 162 162 155 169 159 175 160 166 154 Slowest Speed 330 | 120 160 160 240 240 240 160 160 160 160 160 160 160 160 160 160 160 162 162 162 155 235 330 190 240 166 240 Overloaded Moves . | . . . . . . . . . . . . . . . . . . . . . . . . . . . Propulsion Burnouts . | . . . . . . . . . . . . . . . . . . . . . . . . . . . Robots Hopped . | . . . . . . . . . . . . . . . . . . . . . . . . . . . Potential Cave-ins 5 | . . . . . . . . . . . . . . . . . . . . . . . . . 5 . Cave-ins Triggered . | . . . . . . . . . . . . . . . . . . . . . . . . . . . Exploration Rate (%) 53 | 4 99 91 93 99 96 25 31 55 85 49 11 41 57 72 53 25 48 38 61 45 24 90 57 24 56 16 Regions Visited 26 Branch Regions 18 Pre-discovered Areas 10 | . . . 2 . . . 1 1 2 . . . . 1 . . . . 3 . . . . . . . Known Exits Taken 23 | . . . 1 1 1 1 1 1 1 1 1 1 1 1 1 1 1 1 1 1 1 1 1 1 1 . Unknown Exits Taken 3 | 1 1 1 . . . . . . . . . . . . . . . . . . . . . . . . Scrap Searched 19 | . . 1 . 1 . . 1 2 3 3 . 1 1 . 3 . 1 1 . 1 . . . . . . Spaces Dug 99 | . . . 1 . 1 12 1 9 . . 4 1 5 . 3 21 2 1 . 4 10 . . 11 10 3 Terrain Destroyed 550 | . 8 23 14 3 7 12 1 9 . 37 21 7 5 . 3 67 76 55 . 25 35 23 . 12 16 91 Melee 28 | . . . 1 . 1 12 1 3 . . 4 1 2 . . 3 . . . . . . . . . . Projectile 157 | . . . 3 3 . . . 6 . . . . 3 . 3 35 4 6 . 14 25 23 . 12 16 4 AOE 365 | . 8 23 10 . 6 . . . . 37 17 6 . . . 29 72 49 . 11 10 . . . . 87 Terrain Rammed . | . . . . . . . . . . . . . . . . . . . . . . . . . . . Walls Destroyed . | . . . . . . . . . . . . . . . . . . . . . . . . . . . Machines Disabled . | . . . . . . . . . . . . . . . . . . . . . . . . . . . Actions | -11 -10 -10 -9 -9 -8 -7 -7 -7 -7 -6 -6 -6 -6 -6 -5 -5 -5 -5 -5 -4 -4 -4 -4 -3 -3 -3 --------- Run | Yrd Mat Min Mat Min Mat Fac Low Low Zio Pro Fac Low Low Dat Pro Fac Upp Upp Zhi Pro Fac Ext Cet Res Qua Frg Total 17059 | 78 916 463 1278 2247 1691 830 167 358 964 273 304 258 347 99 728 859 240 247 249 273 803 1262 180 781 679 485 Wait 2934 | 5 112 13 173 1656 152 109 14 . 9 16 2 58 6 7 64 86 . . . 42 143 66 7 15 97 82 Move 12303 | 51 690 431 967 570 1315 642 137 336 947 222 278 188 328 92 506 648 213 226 211 184 604 931 118 658 508 302 Hop . | . . . . . . . . . . . . . . . . . . . . . . . . . . . Pick Up 138 | 4 10 2 25 2 22 10 . . 2 . 2 . . . 3 7 1 . . . 3 12 8 16 4 5 Fast Attach 133 | 7 9 . 14 . 31 5 1 2 2 3 3 . . . 8 4 1 . 6 . 4 19 3 4 4 3 Attach 91 | . 1 . 4 . 8 3 . . 1 . 2 . . . 1 3 . 1 . 11 11 11 7 9 3 15 Detach 27 | . . . 1 . 2 . . . . . . . . . 2 1 . . 1 4 7 1 2 5 . 1 Swap 261 | 1 15 2 8 4 14 24 8 1 . 12 8 6 3 . 30 44 12 11 . . 2 9 4 19 16 8 Drop 153 | . 13 1 21 2 41 11 1 1 3 3 3 . . . 10 7 2 . 7 . 1 10 5 6 5 . Fire 741 | 10 62 11 61 8 103 14 4 15 . 10 2 5 8 . 28 54 11 9 . 24 28 93 26 48 42 65 Melee 34 | . . . 1 . 1 12 2 3 . . 4 1 2 . 3 3 . . . . . 2 . . . . Ram 3 | . . . . . . . . . . . . . . . . . . . . . . . . . . 3 Kick 2 | . 2 . . . . . . . . . . . . . . . . . . . . . . . . . Crush 34 | . 2 3 3 5 2 . . . . . . . . . . 2 . . . 8 . 8 . . . 1 Escape Stasis . | . . . . . . . . . . . . . . . . . . . . . . . . . . . Rewire 205 | . . . . . . . . . . 7 . . . . 73 . . . 24 . . 100 . 1 . . Trap . | . . . . . . . . . . . . . . . . . . . . . . . . . . . Miscellaneous . | . . . . . . . . . . . . . . . . . . . . . . . . . . . Route ------- -11/Scrapyard -10/Materials (discovered 4 exits: *Mat x3 / [*Min]) -10/Mines (discovered 2 exits: *Mat x2) -9/Materials (discovered 5 exits: *Mat x3 / *Min x2) -9/Mines (discovered 4 exits: *Mat x2 / [*Exi] / *Zio) -8/Materials (discovered 3 exits: *Fac x3) -7/Factory (discovered 5 exits: *Fac / Sto x2 / *Low x2) -7/Lower Caves -7/Lower Caves -7/Zion -6/Proximity Caves -6/Factory (discovered 2 exits: *Low x2) -6/Lower Caves -6/Lower Caves (discovered 2 exits: *Fac / *Dat) -6/Data Miner -5/Proximity Caves -5/Factory -5/Upper Caves -5/Upper Caves -5/Zhirov -4/Proximity Caves -4/Factory (discovered 2 exits: *Res / *Ext) -4/Extension (discovered 2 exits: *Res / *Cet) -4/Cetus (discovered 2 exits: *Res / [*Arc]) -3/Research -3/Quarantine (discovered 2 exits: [*Sec] / *Frg) -3/Protoforge (discovered 1 exit: [*Res]) History --------- Turn | Location | Event 16 | -11/Scrapyard | Discovered new exit (range 16) 111 | -11/Scrapyard | Entered Materials 302 | -10/Materials | Build established: Mutant 468 | -10/Materials | Discovered new exit (range 4) 730 | -10/Materials | Discovered new exit (range 8) 962 | -10/Materials | Discovered new exit (range 16) 965 | -10/Materials | Build established: Scavenger-Mutant 1166 | -10/Materials | Discovered new exit (range 14) 1261 | -10/Materials | Repaired Lgt. Treads 1459 | -10/Materials | Entered Mines 1514 | -10/Mines | YI-UF0 nonchalantly dropped a Grenade Launcher on the ground 1569 | -10/Mines | Discovered new exit (range 5) 1619 | -10/Mines | Assisted by bots powering up and referring to "LRC-V3" 2031 | -10/Mines | Discovered new exit (range 16) 2093 | -10/Mines | Learned 4 Materials zone layouts 2203 | -10/Mines | Entered Materials 2203 | -9/Materials | Accompanied by 2 allies 2203 | -9/Materials | Evolved 2 slots: Propulsion x1, Weapon x1 2204 | -9/Materials | Identified exit to Materials 2650 | -9/Materials | Discovered new exit (range 14) 2663 | -9/Materials | Identified exit to Mines 2760 | -9/Materials | Build established: Tank 2863 | -9/Materials | Discovered exit to Materials (range 15) 3115 | -9/Materials | Loaded intel: 8 trap records 3190 | -9/Materials | Learned location of Mines (-8) 3306 | -9/Materials | Learned location of Zion (-7) 3349 | -9/Materials | Learned Materials trap positions 3403 | -9/Materials | Learned location of 1 exit from Storage 3979 | -9/Materials | Discovered exit to Materials (range 15) 4367 | -9/Materials | Repaired Imp. Light Armor Plating 4395 | -9/Materials | Repaired Lgt. Treads 4482 | -9/Materials | Entered Mines 4557 | -9/Mines | Deemed a non-threat by the Exiles lab entrance 4557 | -9/Mines | Discovered new exit (range 5) 4689 | -9/Mines | Found a hidden stash of uninstalled traps 4874 | -9/Mines | Learned 2 Materials zone layouts 4879 | -9/Mines | A Derelict revealed a hidden shortcut to a safe place 4989 | -9/Mines | Received a Mining Laser from a helpful Derelict 5340 | -9/Mines | Assembled infested the area 7087 | -9/Mines | Discovered exit to Materials (range 11) 7501 | -9/Mines | Discovered exit to Materials (range 7) 7553 | -9/Mines | Entered Materials 7553 | -8/Materials | Evolved 2 slots: Utility x2 7554 | -8/Materials | Identified exit to Factory 7555 | -8/Materials | Loaded intel: 13 trap records 7703 | -8/Materials | Repaired Lgt. Treads 7821 | -8/Materials | Build established: Gunner 7980 | -8/Materials | Destroyed 7 combat bots 9530 | -8/Materials | Discovered exit to Factory (range 8) 10070 | -8/Materials | Lost 3 parts (1n2u) 10293 | -8/Materials | Repaired Lgt. Treads 10587 | -8/Materials | Build established: Scavenger-Gunner 10865 | -8/Materials | Discovered exit to Factory (range 6) 10977 | -8/Materials | Entered Factory 10977 | -7/Factory | Evolved 2 slots: Propulsion x1, Utility x1 10978 | -7/Factory | Identified exit to Storage 11104 | -7/Factory | Identified exit to Lower Caves 11296 | -7/Factory | Repaired Lgt. Treads 11357 | -7/Factory | Repaired Prc. Beam Rifle 11870 | -7/Factory | Discovered new exit (range 10) 11885 | -7/Factory | Identified exit to Factory 12074 | -7/Factory | Garrison activated, responded to threat 12106 | -7/Factory | Build established: Scavenger-Assassin 12246 | -7/Factory | Entered Lower Caves 12392 | -7/Lower Caves | Found DCF Scrap (11 items) 12502 | -7/Lower Caves | Discovered new exit (range 6) 12508 | -7/Lower Caves | Identified exit to Lower Caves 12510 | -7/Lower Caves | Entered another Lower Caves area 12571 | -7/Lower Caves | Learned 4 Factory zone layouts 12766 | -7/Lower Caves | Found Alien Artifact 12766 | -7/Lower Caves | Identified Core Expander 12766 | -7/Lower Caves | Installed Core Expander, added new Propulsion slot 13062 | -7/Lower Caves | Discovered new exit (range 12) 13081 | -7/Lower Caves | Identified exit to Zion 13091 | -7/Lower Caves | Entered Zion 13106 | -7/Zion | Build established: Scavenger-Skirmisher 13107 | -7/Zion | Given A8's code to call for help 13155 | -7/Zion | System corruption cleaned by Quarantine Array 13428 | -7/Zion | Given the Hacking Drone Bay 13455 | -7/Zion | Found CR-A16's Pointy Stick 13512 | -7/Zion | Acquired unknown access codes intercepted by a Zionite 13587 | -7/Zion | Met Imprinter 13879 | -7/Zion | Found Prototype Special Weapon 13879 | -7/Zion | Identified RU-N14's Throwing Claymores 13969 | -7/Zion | Learned Factory terminal intel 14292 | -7/Zion | Enhanced Grunt warped into view, answering call for help 14295 | -7/Zion | Enhanced Grunt warped into view, answering call for help 14590 | -7/Zion | Discovered new exit (range 11) 14620 | -7/Zion | Identified exit to Proximity Caves 14623 | -7/Zion | Entered Proximity Caves 14623 | -6/Proximity Caves | Accompanied by 2 allies 14807 | -6/Proximity Caves | Attracted the attention of an 0b10 outpost 15021 | -6/Proximity Caves | Discovered exit to Factory (range 11) 15050 | -6/Proximity Caves | Entered Factory 15050 | -6/Factory | Accompanied by 2 allies 15050 | -6/Factory | Evolved 2 slots: Power x1, Utility x1 15051 | -6/Factory | Identified exit to Lower Caves 15052 | -6/Factory | Loaded intel: 26 terminal locations 15363 | -6/Factory | Build established: Scavenger-Assassin 15535 | -6/Factory | Entered Lower Caves 15535 | -6/Lower Caves | Accompanied by 2 allies 15868 | -6/Lower Caves | Discovered new exit (range 15) 15915 | -6/Lower Caves | Identified exit to Lower Caves 15916 | -6/Lower Caves | Entered another Lower Caves area 15916 | -6/Lower Caves | Accompanied by 2 allies 15955 | -6/Lower Caves | Discovered new exit (range 10) 16348 | -6/Lower Caves | Learned Factory emergency access door positions 16376 | -6/Lower Caves | Build established: Scavenger-Skirmisher 16457 | -6/Lower Caves | Discovered new exit (range 8) 16467 | -6/Lower Caves | Identified exit to Data Miner 16474 | -6/Lower Caves | Entered Data Miner 16474 | -6/Data Miner | Accompanied by 2 allies 16474 | -6/Data Miner | Discovered new exit (range 7) 16505 | -6/Data Miner | Met Data Miner 16546 | -6/Data Miner | Learned location of Section 7 (-3) 16546 | -6/Data Miner | Acquired the access code to Warlord's prototype stash 16575 | -6/Data Miner | Received God Mode back door access code from Data Miner 16620 | -6/Data Miner | Identified exit to Proximity Caves 16629 | -6/Data Miner | Entered Proximity Caves 16629 | -5/Proximity Caves | Accompanied by 2 allies 17178 | -5/Proximity Caves | Spotted B-75 Beast 17194 | -5/Proximity Caves | Destroyed B-75 Beast 17215 | -5/Proximity Caves | Learned 4 Factory zone layouts 17278 | -5/Proximity Caves | Snuck into a huge 0b10 base via the rear entrance 17427 | -5/Proximity Caves | Derelicts attacked a huge 0b10 base 17503 | -5/Proximity Caves | Discovered new exit (range 3) 17509 | -5/Proximity Caves | Identified exit to Factory 17532 | -5/Proximity Caves | Lost 6 allies 17732 | -5/Proximity Caves | Entered Factory 17732 | -5/Factory | Accompanied by 5 allies 17732 | -5/Factory | Evolved 2 slots: Utility x2 17733 | -5/Factory | Identified exit to Upper Caves 18094 | -5/Factory | Repaired Med. Treads 19094 | -5/Factory | Entered Upper Caves 19206 | -5/Upper Caves | Found DCF Scrap (12 items) 19447 | -5/Upper Caves | Discovered new exit (range 10) 19482 | -5/Upper Caves | Identified exit to Upper Caves 19484 | -5/Upper Caves | Entered another Upper Caves area 19711 | -5/Upper Caves | Learned Factory garrison access intel 19881 | -5/Upper Caves | Discovered new exit (range 7) 19889 | -5/Upper Caves | Identified exit to Zhirov 19891 | -5/Upper Caves | Entered Zhirov 19893 | -5/Zhirov | Discovered new exit (range 4) 19922 | -5/Zhirov | Met Zhirov 19953 | -5/Zhirov | Learned location of Quarantine (-3) 19953 | -5/Zhirov | Learned location of Testing (-2) 19953 | -5/Zhirov | Learned location of Command (-1) 19977 | -5/Zhirov | Zhirov requested help retrieving the SGEMP Prototype 20010 | -5/Zhirov | Found Alien Artifact 20010 | -5/Zhirov | Identified Integrated Dissipator 20010 | -5/Zhirov | Installed Integrated Dissipator, increased core heat dissipation (+20) 20269 | -5/Zhirov | Identified exit to Proximity Caves 20270 | -5/Zhirov | Entered Proximity Caves 20332 | -4/Proximity Caves | Lost 7 parts (4n2u1w) 20356 | -4/Proximity Caves | Build established: Hacker-Mutant 20490 | -4/Proximity Caves | Spotter reported a threat 20508 | -4/Proximity Caves | Spotter reported a threat 20578 | -4/Proximity Caves | Spotter reported a threat 20655 | -4/Proximity Caves | Discovered new exit (range 13) 20672 | -4/Proximity Caves | Identified exit to Factory 20674 | -4/Proximity Caves | Entered Factory 20674 | -4/Factory | Evolved 2 slots: Propulsion x1, Utility x1 20675 | -4/Factory | Identified exit to Extension 20676 | -4/Factory | Loaded intel: 4 garrison access locations 20924 | -4/Factory | Search patrols dispatched 21306 | -4/Factory | Build established: Skirmisher 21704 | -4/Factory | Discovered new exit (range 15) 21726 | -4/Factory | Found Prototype Hackware 21946 | -4/Factory | Entered Extension 22306 | -4/Extension | Rescued a captive Derelict 22431 | -4/Extension | Rescued A7 22543 | -4/Extension | Build established: Commander-Tank 22784 | -4/Extension | Incoming investigation squad redirected 22786 | -4/Extension | Spotted B-86 Titan 22793 | -4/Extension | Destroyed B-86 Titan 22810 | -4/Extension | Spotted B-86 Titan 22818 | -4/Extension | Allies destroyed B-86 Titan 23051 | -4/Extension | Rescued a captive Derelict 23052 | -4/Extension | Rescued a captive Derelict 23136 | -4/Extension | Rescued a captive Derelict 23137 | -4/Extension | Rescued a captive Derelict 23152 | -4/Extension | Build established: Scavenger-Tank 23171 | -4/Extension | Disrupted transfer network 23430 | -4/Extension | System corruption reached 10% 23549 | -4/Extension | Build established: Commander-Tank 23668 | -4/Extension | Discovered new exit (range 10) 23680 | -4/Extension | Discovered new exit (range 6) 23684 | -4/Extension | Disrupted transfer network 23696 | -4/Extension | First assault squad dispatched 23703 | -4/Extension | P-70 Sage assimilated allied 7L-HFQ(g) 23710 | -4/Extension | P-70 Sage assimilated allied RM-PWQ(g) 23725 | -4/Extension | Core integrity fell below 50% 23726 | -4/Extension | Incoming assault squad redirected 23738 | -4/Extension | Destroyed 9 combat bots 23750 | -4/Extension | Core integrity fell below 20% 23789 | -4/Extension | Lost 23 parts (3p5n6u9w) 23805 | -4/Extension | Lost 8 allies 23852 | -4/Extension | Found Hvy. Reflective Plating 23911 | -4/Extension | Identified exit to Cetus 23958 | -4/Extension | Entered Cetus 23958 | -4/Cetus | Accompanied by 5 allies 23985 | -4/Cetus | Spotted Cetus Guard 23986 | -4/Cetus | Allies destroyed Cetus Guard 23986 | -4/Cetus | Spotted Cetus Guard 23987 | -4/Cetus | Spotted Cetus Guard 23988 | -4/Cetus | Lost 4 allies 23988 | -4/Cetus | Spotted Cetus Guard 23998 | -4/Cetus | Destroyed Cetus Guard 24010 | -4/Cetus | Allies destroyed Cetus Guard 24015 | -4/Cetus | Destroyed Cetus Guard 24119 | -4/Cetus | Discovered new exit (range 15) 24152 | -4/Cetus | Spotted Cetus Guard 24152 | -4/Cetus | Spotted Cetus Guard 24154 | -4/Cetus | Allies destroyed Cetus Guard 24155 | -4/Cetus | Spotted Cetus Guard 24161 | -4/Cetus | Allies destroyed Cetus Guard 24163 | -4/Cetus | Allies destroyed Cetus Guard 24165 | -4/Cetus | Spotted Cetus Guard 24173 | -4/Cetus | Destroyed Cetus Guard 24185 | -4/Cetus | Discovered new exit (range 15) 24191 | -4/Cetus | Met Revision 17 24201 | -4/Cetus | System corruption reached 30% 24221 | -4/Cetus | Identified Exp. System Shield 24250 | -4/Cetus | Identified exit to Research 24253 | -4/Cetus | Entered Research 24253 | -3/Research | Accompanied by 2 allies 24253 | -3/Research | Evolved 2 slots: Power x1, Utility x1 24453 | -3/Research | Revision forces began assault on 0b10 24476 | -3/Research | Met up with Revision 17++ 24490 | -3/Research | Found Fusion Bomb Launcher 24699 | -3/Research | Build established: Scavenger-Tank 24735 | -3/Research | Found Adv. Powered Armor 24796 | -3/Research | Spotted B-86 Titan 24953 | -3/Research | Research terminal network offline 25498 | -3/Research | Discovered new exit (range 9) 25510 | -3/Research | Identified exit to Quarantine 25518 | -3/Research | Entered Quarantine 25581 | -3/Quarantine | Found Alien Artifact 26227 | -3/Quarantine | System corruption reached 10% 26295 | -3/Quarantine | Found Alien Artifact 26481 | -3/Quarantine | Spotted Fortress 26594 | -3/Quarantine | Discovered new exit (range 6) 26594 | -3/Quarantine | Discovered new exit (range 6) 26601 | -3/Quarantine | Identified exit to Protoforge 26604 | -3/Quarantine | Entered Protoforge 26801 | -3/Protoforge | Spotted Hotshot 26801 | -3/Protoforge | Spotted Hotshot 26801 | -3/Protoforge | Spotted Hotshot 26801 | -3/Protoforge | Spotted Hotshot 26832 | -3/Protoforge | Spotted Hotshot 26848 | -3/Protoforge | Destroyed Hotshot 26893 | -3/Protoforge | Destroyed Hotshot 26922 | -3/Protoforge | Lost 9 parts (2p1n5u1w) 26924 | -3/Protoforge | Destroyed Hotshot 26932 | -3/Protoforge | Destroyed Hotshot 26938 | -3/Protoforge | Destroyed Hotshot 27026 | -3/Protoforge | Lost 3 parts (3u) 27067 | -3/Protoforge | Spotted Hotshot 27084 | -3/Protoforge | Destroyed Hotshot 27085 | -3/Protoforge | Lost 3 parts (1p2n) 27144 | -3/Protoforge | Discovered new exit (range 15) 27197 | -3/Protoforge | Build established: Scavenger-Mutant 27221 | -3/Protoforge | Identified Terrabomb 27221 | -3/Protoforge | Used Terrabomb 27222 | -3/Protoforge | Spotted Overlord 27224 | -3/Protoforge | Superfortress began startup sequence 27251 | -3/Protoforge | Spotted Hotshot 27258 | -3/Protoforge | Spotted Hotshot 27265 | -3/Protoforge | Spotted Hotshot 27287 | -3/Protoforge | Destroyed Hotshot 27288 | -3/Protoforge | System corruption reached 30% 27291 | -3/Protoforge | Released all parts (9) 27294 | -3/Protoforge | Core integrity fell below 50% 27308 | -3/Protoforge | Core integrity fell below 20% 27321 | -3/Protoforge | Lost 8 parts (1p3n2u2w) 27335 | -3/Protoforge | Destroyed by P-80 Master with Gamma Rifle Last Messages --------------- 27291_ Released Huge Storage Unit. 27291_ Released Graphene Brace. 27291_ Released Adv. Transmission Jammer. 27291_ Released Com. HERF Cannon. 27291_ Acquired 11 matter. 27293_ The unstable cave ceiling collapses. 27297_ Slug penetrates Wall. 27301_ System corrupted: Heat flow error (+208). 27304_ Slug penetrates Wall. 27310_ Slammed into W-44 Eye. 27320_ System corrupted: Heat flow error (+211). 27321_ Slammed into W-44 Eye. 27321_ Triggered Shock Trap. 27321_ The floor emits a surge of raw power. 27321_ System corrupted (+2). 27328_ Slug penetrates Wall. 27331_ Slug penetrates H-77 Assassin. 27331_ Slug penetrates Wall. 27335_ Penetrated by Slug. 27335_ K-01 Serf destroyed. Map ----- +----------------------------------------------------+ | ?????????????????????????????????????????????????? | | ?????????????????????????????????????????????????? | | ########?????????????????????????????????????????? | | #?????????????????????????????????????????? | | ### #?????????????????????????????????????????? | | ??# #?????????????????????????????????????????? | | ??# #?????????????????????????????????????????? | | ??# #?????????????????????????????????????????? | | ??# #?????????????????????????????????????????? | | ??# #?????????????????????????????????????????? | | ??# #?????????????????????????????????????????? | | ??# #?????????????????????????????????????????? | | ??# #?????????????????????????????????????????? | | ??# #?????????????????????????????????????????? | | ??# #?????????????????????????????????????????? | | ### #?????????????????????????????????????????? | | #### #?????????????????????????????????????????? | | #?# #?????????????????????????????????????????? | | ## #?????????????????????????????????????????? | | # #?????????????????????????????????????????? | | " #?????????????????????????????????????????? | | " #?????????????????????????????????????????? | | " #?????????????????????????????????????????? | | """+####??????????????????????????????????????? | | " ########################???????????????? | | " " # @ ????????? | | "" ""S " p = ????????? | | " """" " # % ????????? | | " " "" # #######+## ############?????????? | | " " # #????????# h ??????????????????? | | " """"""## #????????# h #?????????????????? | | """""" ## #????????# #?????????????????? | | " # #????????# ####?????????????????? | | """"" " ## #????????# #????????????????????? | | + " ## #????????# #????????????????????? | | " " # ????????# ????????????????????? | | " " """# ????????# ???????????????????? | | "? " ????????# ???????????????????? | | ? """""# #???????? """ ???????????????????? | | ?? ? ## #???????? "T?????????????????????? | | ""??? ??######???????? ???????????????????????? | | " ???????????????????????????????????????????????? | | "????????????????????????????????????????????????? | | "????????????????????????????????????????????????? | | ?????????????????????????????????????????????????? | | ?????????????????????????????????????????????????? | | ?????????????????????????????????????????????????? | | ?????????????????????????????????????????????????? | | ?????????????????????????????????????????????????? | | ?????????????????????????????????????????????????? | +----------------------------------------------------+ Best States ------------- Heat Dissipation 139 Coolant Potential 65 Energy Generation 57 Energy Capacity 635 Matter Stores 300 Matter Capacity 300 Sight Range 18 Robot Scan Range 16 Terrain Scan Density 10 Jamming Range 16 Base Temperature (-) 200 Armor Coverage 1250 Resistance: TH 25 Propulsion Shielding 90 Weapon Shielding 90 Evasion (%) 55 Targeting Accuracy 8 Core Analysis 6 Recoil Reduction 6 Offensive Hacking 14 Defensive Hacking 16 Item Schematics ----------------- Spread Laser | -9/Materials | Scanalyzed Disposable Heat Sink | -9/Materials | Scanalyzed Combat Drone Bay | -6/Data Miner | Free Lgt. Regenerative Plating | -6/Data Miner | Free Cld. Gravmag System | -6/Data Miner | Free Imp. Matter Compressor | -6/Data Miner | Free Mni. Smartbomb Launcher | -6/Data Miner | Free Adv. Medium Treads | -6/Data Miner | Free Imp. Cloaking Device | -6/Data Miner | Free Hardcell Cannon | -6/Data Miner | Free Field Propulsion Array | -6/Data Miner | Free Assault Drone Bay | -5/Zhirov | Free Exp. Heat Sink | -5/Zhirov | Free Exp. Optical Array | -5/Zhirov | Free Imp. Arc Thrower | -5/Zhirov | Free Robot Schematics ------------------ P-70 Sage | -6/Data Miner | Free B-48 Gladiator | -6/Data Miner | Free M-22 Extractor | -6/Data Miner | Free A-27 Freighter | -6/Data Miner | Free Fabricated ------------ Nothing Repaired ---------- Lgt. Treads | 34% | -10/Materials Imp. Light Armor Plating | 36% | -9/Materials Lgt. Treads | 75% | -9/Materials Lgt. Treads | 61% | -8/Materials Lgt. Treads | 70% | -8/Materials Lgt. Treads | 57% | -7/Factory Prc. Beam Rifle | 42% | -7/Factory Med. Treads | 32% | -5/Factory Alien Tech Used ----------------- Core Expander Integrated Dissipator Terrabomb Achievements -------------- Decoder Ring Challenges ------------ None Game ------ Seed MultinovaEtherialBotcube Manual? 0 Play Time 03:43:45 Cumulative 88.7 hours Start 2025.05.12 @ 22:03:47 End 2025.05.13 @ 02:45:18 Sessions 3 Manual Loads 0 Difficulty Rogue Special Mode None Game No. 22 Rogue 22 Adventurer 0 Explorer 0 Win Type - Total 5 Types 0/0/3/0/0/0/2/0/0/0 Lore% 47 Gallery% 49 Achievement% 65 Wizard Run 0 Options --------- Layout 1 ASCII 0 Keyboard 0 Movement Arrows Keybinds 0 Fullscreen 2 Font 24/Terminus Map View 50x35 Zoom Use 0% Tactical HUD 1 Map Filters NONE Filters NONE Steam 1 RUN: 28f6af03-bbba-4574-b2f9-65eadd8a3ecd